bitfinex/quotes_BTCUSD_20260310
["timestamp","ask_amount","ask_price","bid_price","bid_amount"]
[1773174556699,0.07150199,70287.0,70265.0,0.07115918]
[1773174556902,0.05398751,70280.0,70266.0,0.00144]
[1773174557618,0.00144,70286.0,70266.0,0.00144]
[1773174557822,0.071145,70279.0,70267.0,0.00144]
[1773174558023,0.071145,70279.0,70260.0,0.07116366]
[1773174558221,0.07151872,70279.0,70264.0,0.00144]
[1773174558421,0.07295872,70279.0,70264.0,0.00144]
[1773174559711,0.07295872,70279.0,70265.0,0.00144]
[1773174559965,0.07295872,70279.0,70265.0,0.03042]
[1773174560159,0.00181372,70279.0,70265.0,0.10157887]
[1773174560543,0.03181372,70279.0,70265.0,0.07259887]
[1773174561357,0.00036421,70287.0,70265.0,0.07259887]
[1773174561559,0.00036421,70287.0,70269.0,0.05398751]
[1773174562616,0.07150116,70287.0,70265.0,0.07153259]
[1773174562811,0.07150116,70287.0,70266.0,0.00144]
[1773174562989,0.00036421,70287.0,70270.0,0.05398751]
[1773174563405,0.00036421,70287.0,70271.0,0.0711531]
[1773174563927,0.00036421,70287.0,70272.0,0.00144]
[1773174565382,0.00036421,70287.0,70273.0,0.07115108]
[1773174569136,0.07150116,70287.0,70272.0,0.0711516]
[1773174569345,0.07150116,70287.0,70269.0,0.0713549]
[1773174569346,0.00036421,70287.0,70274.0,0.00144]
[1773174569559,0.00036421,70287.0,70274.0,0.07258945]
[1773174570457,0.00036421,70287.0,70274.0,0.07114945]
[1773174570662,0.00036421,70287.0,70275.0,0.00144]
[1773174570858,0.00036421,70287.0,70269.0,0.07135466]
[1773174570859,0.05398751,70285.0,70269.0,0.07135466]
[1773174571216,0.05398751,70280.0,70270.0,0.00144]
[1773174571421,0.00144,70286.0,70269.0,0.07135466]
[1773174571628,0.05398751,70280.0,70270.0,0.00144]
[1773174572982,0.0725785,70286.0,70271.0,0.0711531]
[1773174575347,0.05398751,70281.0,70267.0,0.00144]
[1773174576752,0.00144,70280.0,70267.0,0.00144]
[1773174577964,0.07258451,70280.0,70267.0,0.00144]
[1773174578142,0.00144,70280.0,70267.0,0.07259686]
[1773174579451,0.00144,70280.0,70268.0,0.00144]
[1773174580034,0.07258416,70280.0,70268.0,0.00144]
[1773174582935,0.07258416,70280.0,70268.0,0.00164]
[1773174585834,0.12657167,70280.0,70268.0,0.00164]
[1773174586420,0.26866014,70280.0,70268.0,0.00164]
[1773174586609,0.12657167,70280.0,70268.0,0.00164]
[1773174586807,0.12657167,70280.0,70262.0,0.07116222]
[1773174587012,0.26903458,70280.0,70263.0,0.00144]
[1773174587221,0.26903458,70280.0,70262.0,0.07116222]
[1773174587222,0.14208919,70279.0,70262.0,0.07116222]
[1773174587417,0.26903458,70280.0,70263.0,0.00144]
[1773174587642,0.26903458,70280.0,70262.0,0.07116222]
[1773174587838,0.26903458,70280.0,70263.0,0.00144]
[1773174588219,0.26903458,70280.0,70261.0,0.0002]
[1773174588423,0.26903458,70280.0,70264.0,0.00144]
[1773174589771,0.27003458,70280.0,70264.0,0.00144]
[1773174590663,0.26903458,70280.0,70264.0,0.00144]
[1773174590867,0.27003458,70280.0,70264.0,0.00144]
[1773174593821,0.26903458,70280.0,70264.0,0.00144]
[1773174594029,0.27003458,70280.0,70264.0,0.00144]
[1773174594329,0.26903458,70280.0,70264.0,0.00144]
[1773174596107,0.26903458,70280.0,70265.0,0.00144]
[1773174596316,0.27003458,70280.0,70265.0,0.00144]
[1773174596522,0.26903458,70280.0,70265.0,0.00144]
[1773174596819,0.27003458,70280.0,70265.0,0.00144]
[1773174597165,0.26903458,70280.0,70265.0,0.00144]
[1773174597559,0.21604707,70280.0,70265.0,0.00144]
[1773174597754,0.14208919,70279.0,70265.0,0.00144]
[1773174598051,0.07395788,70280.0,70265.0,0.00144]
[1773174598655,0.07295788,70280.0,70265.0,0.00144]
[1773174598854,0.12694539,70280.0,70266.0,0.00144]
[1773174599056,0.27003747,70280.0,70266.0,0.00144]
[1773174599897,0.27003747,70280.0,70266.0,0.0017014]
[1773174599898,0.26903747,70280.0,70266.0,0.0017014]
[1773174600105,0.27003747,70280.0,70266.0,0.0017014]
[1773174600505,0.27025748,70280.0,70266.0,0.0017014]
[1773174602616,0.26925748,70280.0,70266.0,0.0017014]
[1773174602833,0.27025748,70280.0,70266.0,0.0017014]
[1773174603040,0.21526997,70280.0,70266.0,0.0017014]
[1773174603260,0.14209208,70279.0,70266.0,0.07141954]
[1773174603432,0.00059373,70280.0,70270.0,0.05398751]
[1773174603433,0.001,70280.0,70270.0,0.05398751]
[1773174603593,0.00144,70288.0,70270.0,0.05399557]
[1773174603779,0.00144,70288.0,70270.0,0.05436929]
[1773174603984,0.00144,70288.0,70270.0,0.05463069]
[1773174604385,0.07257608,70288.0,70270.0,0.00063512]
[1773174605052,0.07257608,70288.0,70271.0,0.0711531]
[1773174605255,0.07257608,70288.0,70272.0,0.00144]
[1773174605458,0.07257608,70288.0,70261.0,0.0002]
[1773174605459,0.5399557,70282.0,70261.0,0.0002]
[1773174605655,0.5399557,70282.0,70264.0,0.0015664]
[1773174605656,0.00144,70281.0,70264.0,0.0015664]
[1773174607407,0.07114399,70280.0,70264.0,0.0015664]
[1773174607806,0.05399557,70274.0,70261.0,0.0002]
[1773174608006,0.05399557,70270.0,70256.0,0.00144]
[1773174608208,0.05399557,70270.0,70256.0,0.07260803]
[1773174608407,0.00144,70271.0,70257.0,0.07129361]
[1773174609538,0.00144,70275.0,70264.0,0.0002]
[1773174609707,0.00144,70275.0,70264.0,5.253e-05]
[1773174610434,0.0001264,70281.0,70265.0,0.00144]
[1773174610734,0.07126985,70281.0,70265.0,0.00144]
[1773174610911,0.05399557,70280.0,70264.0,5.253e-05]
[1773174611092,0.05399557,70280.0,70265.0,0.00144]
[1773174611293,0.05399557,70275.0,70257.0,0.0001264]
[1773174611498,0.05399557,70275.0,70256.0,0.0002]
[1773174611499,0.05399557,70270.0,70256.0,0.0002]
[1773174611832,0.05543557,70270.0,70256.0,0.0002]
[1773174612427,0.00144,70270.0,70256.0,0.07136826]
[1773174612806,0.05543557,70270.0,70256.0,0.0002]
[1773174613729,0.0725951,70270.0,70256.0,0.0002]
[1773174613931,0.0001264,70274.0,70257.0,0.07116728]
[1773174614131,0.07127692,70274.0,70257.0,0.07116728]
[1773174615623,0.0001264,70274.0,70257.0,0.07116728]
[1773174617739,0.0001264,70274.0,70257.0,0.07136728]
[1773174621877,0.07126938,70281.0,70257.0,0.07149368]
[1773174623425,0.00166001,70284.0,70257.0,0.07149368]
[1773174623426,0.00022001,70284.0,70260.0,0.16211463]
[1773174623642,0.00028377,70284.0,70261.0,0.00144]
[1773174624021,0.00028377,70284.0,70262.0,0.07116222]
[1773174625145,0.00028377,70284.0,70262.0,0.07136012]
[1773174625146,0.00022001,70281.0,70262.0,0.07136012]
[1773174626722,0.00022001,70281.0,70263.0,0.00144]
[1773174627138,0.00022001,70281.0,70263.0,0.0001979]
[1773174627470,0.00022001,70281.0,70264.0,0.00144]
[1773174627614,0.00022001,70281.0,70263.0,0.0001979]
[1773174627819,0.00022001,70281.0,70264.0,0.00144]
[1773174628145,0.00022001,70281.0,70264.0,0.0001979]
[1773174628315,0.00022001,70281.0,70265.0,0.00144]
[1773174628869,0.00022001,70281.0,70266.0,0.00144]
[1773174629078,0.00022001,70281.0,70267.0,0.00144]
[1773174629228,0.00022001,70281.0,70268.0,0.00144]
[1773174629229,0.07136316,70281.0,70268.0,0.00144]
[1773174629567,0.00022001,70281.0,70268.0,0.00144]
[1773174629864,0.00022001,70281.0,70269.0,0.00144]
[1773174630391,0.07136305,70281.0,70269.0,0.00144]
[1773174630787,0.07136305,70281.0,70264.0,0.0001979]
[1773174631010,0.07136305,70281.0,70265.0,0.00144]
[1773174631338,0.07136305,70281.0,70264.0,0.07135786]
[1773174631540,0.07136305,70281.0,70265.0,0.00144]
[1773174632346,0.00022001,70281.0,70265.0,0.00144]
[1773174633136,0.07136301,70281.0,70266.0,0.07115817]
[1773174634806,0.00022001,70281.0,70266.0,0.07115817]
[1773174642807,0.00028377,70284.0,70266.0,0.07115817]
[1773174650261,0.00028377,70284.0,70266.0,0.07135817]
[1773174651462,0.00028377,70284.0,70266.0,0.07121068]
[1773174653058,0.00028377,70284.0,70270.0,0.05400939]
[1773174653258,0.00028377,70284.0,70271.0,0.00144]
[1773174654677,0.00028377,70284.0,70272.0,0.07115209]
[1773174669370,0.00028377,70284.0,70272.0,0.06115209]
[1773174683850,0.00028377,70284.0,70271.0,0.07259209]
[1773174686008,0.00052027,70284.0,70271.0,0.07259209]
[1773174691557,0.5400666,70281.0,70257.0,0.0002]
[1773174691761,0.05400666,70270.0,70258.0,0.04949504]
[1773174691977,0.00144,70275.0,70258.0,0.04949504]
[1773174692198,0.00144,70275.0,70259.0,0.00144]
[1773174692395,0.14229893,70280.0,70261.0,0.07116323]
[1773174692616,0.14253543,70282.0,70261.0,0.07116323]
[1773174693020,0.05400666,70280.0,70262.0,0.00144]
[1773174693539,0.05400666,70280.0,70261.0,0.07116323]
[1773174693698,0.05400666,70280.0,70263.0,0.00164]
[1773174693899,0.05411526,70280.0,70263.0,0.00164]
[1773174694299,0.0001086,70280.0,70263.0,0.00164]
[1773174694545,0.0001086,70280.0,70264.0,0.07116019]
[1773174695349,0.1425827,70284.0,70270.0,0.05400666]
[1773174695526,0.00028377,70284.0,70271.0,0.00144]
[1773174696522,0.00028377,70284.0,70272.0,0.07115209]
[1773174699954,0.00028377,70284.0,70272.0,0.07135209]
[1773174703806,0.00028377,70284.0,70272.0,0.0002]
[1773174704012,0.00028377,70284.0,70273.0,0.00144]
[1773174704579,0.16766951,70290.0,70272.0,0.07135183]
[1773174704580,0.06423666,70300.0,70274.0,0.00144]
[1773174704924,0.06423666,70300.0,70274.0,0.00037372]
[1773174704925,0.07112688,70297.0,70274.0,0.00037372]
[1773174705128,0.07112688,70297.0,70275.0,0.00144]
[1773174705534,0.00144,70295.0,70274.0,0.00037372]
[1773174705746,0.00144,70295.0,70276.0,0.00144]
[1773174705922,0.00144,70295.0,70277.0,0.07114703]
[1773174706135,0.05400666,70290.0,70274.0,0.00037372]
[1773174706345,0.05400666,70290.0,70274.0,0.0715233]
[1773174708067,0.07113488,70289.0,70274.0,0.0715233]
[1773174708271,0.00144,70288.0,70274.0,0.0715233]
[1773174710129,0.07257595,70288.0,70274.0,0.00037372]
[1773174710349,0.00144,70288.0,70274.0,0.07152355]
[1773174713610,0.07257691,70288.0,70274.0,0.00181372]
[1773174713829,0.05400666,70284.0,70271.0,0.0015679]
[1773174714000,0.05438011,70284.0,70271.0,0.0015679]
[1773174714204,0.05438011,70284.0,70271.0,0.0001279]
[1773174715092,0.00037345,70284.0,70271.0,0.0001279]
[1773174715490,0.00037345,70284.0,70271.0,0.07128079]
[1773174716560,0.07114095,70283.0,70265.0,0.07115918]
[1773174716811,0.07114095,70283.0,70267.0,0.00144]
[1773174722226,0.07258095,70283.0,70267.0,0.00144]
[1773174723007,0.07114095,70283.0,70267.0,0.00144]
[1773174723207,0.07258095,70283.0,70267.0,0.07259706]
[1773174723394,0.07258095,70283.0,70267.0,0.07279706]
[1773174723990,0.07114095,70283.0,70267.0,0.07279706]
[1773174724310,0.07258095,70283.0,70267.0,0.00164]
[1773174724514,0.05400666,70280.0,70264.0,0.0002]
[1773174724717,0.05400666,70280.0,70264.0,0.00164]
[1773174724926,0.21470041,70283.0,70264.0,0.07279996]
[1773174725130,0.14211946,70282.0,70264.0,0.07279996]
[1773174725292,0.07258095,70283.0,70264.0,0.07279996]
[1773174726405,0.05423716,70290.0,70264.0,0.07279996]
[1773174726407,0.17053444,70308.0,70275.0,0.00023]
[1773174726608,0.07112173,70304.0,70281.0,0.07114298]
[1773174726810,0.07110909,70315.0,70290.0,0.05401715]
[1773174727014,0.07255782,70306.0,70289.0,0.00144]
[1773174727232,0.0001529,70318.0,70290.0,0.05401715]
[1773174727443,0.0001529,70318.0,70289.0,0.00144]
[1773174727444,0.0001529,70318.0,70300.0,0.05401715]
[1773174727674,0.0001529,70318.0,70301.0,0.00144]
[1773174728223,0.00159,70323.0,70301.0,0.00144]
[1773174728224,0.00159,70323.0,70308.0,0.05401715]
[1773174728225,0.00015,70323.0,70308.0,0.05401715]
[1773174728468,0.00023,70325.0,70308.0,0.05401715]
[1773174728469,0.00023,70325.0,70309.0,0.00144]
[1773174728648,0.00011165,70325.0,70310.0,0.07111363]
[1773174729254,0.05401715,70320.0,70303.0,0.0002049]
[1773174729458,0.00011165,70325.0,70308.0,0.001]
[1773174729841,0.00011165,70325.0,70303.0,0.0002049]
[1773174730079,0.00011165,70325.0,70308.0,0.00144]
[1773174731192,0.00011165,70325.0,70309.0,0.07111465]
[1773174731390,0.00011165,70325.0,70307.0,0.07111578]
[1773174731595,0.00011165,70325.0,70310.0,0.00144]
[1773174731748,0.05401715,70320.0,70300.0,0.07114349]
[1773174731953,0.05545715,70320.0,70301.0,0.00144]
[1773174732366,0.00022001,70318.0,70301.0,0.00144]
[1773174733219,0.00022001,70318.0,70302.0,0.07112173]
[1773174733724,0.00022001,70318.0,70301.0,0.00144]
[1773174733725,0.07132568,70318.0,70301.0,0.00144]
[1773174733900,0.07132568,70318.0,70301.0,0.07256245]
[1773174734483,0.07132568,70318.0,70301.0,0.07112245]
[1773174734692,0.07132568,70318.0,70301.0,0.07256245]
[1773174735321,0.07132568,70318.0,70300.0,0.07114349]
[1773174735524,0.05401715,70311.0,70300.0,1.985e-05]
[1773174736235,0.00144,70313.0,70300.0,1.985e-05]
[1773174736452,0.00022001,70318.0,70301.0,0.00144]
[1773174737230,0.00022001,70318.0,70302.0,0.07112173]
[1773174737987,0.00011165,70325.0,70302.0,0.07112173]
[1773174738967,0.00011165,70325.0,70302.0,0.07212173]
[1773174739531,0.00022001,70318.0,70302.0,0.07212173]
[1773174739648,0.00022001,70318.0,70302.0,0.07112173]
[1773174740149,0.00022001,70318.0,70300.0,0.07114266]
[1773174740346,0.00022001,70318.0,70304.0,0.00048]
[1773174741895,0.00022001,70318.0,70305.0,0.07111869]
[1773174742512,0.00022001,70318.0,70304.0,0.00048]
[1773174742773,0.05401715,70314.0,70304.0,0.00048]
[1773174742939,0.07132587,70318.0,70304.0,0.07159964]
[1773174742940,0.00022001,70318.0,70304.0,0.07159964]
[1773174744534,0.07132606,70318.0,70304.0,0.00048]
[1773174744744,0.07132606,70318.0,70292.0,0.00562]
[1773174744945,0.16190309,70310.0,70276.0,0.0002433]
[1773174745293,0.00144,70309.0,70287.0,0.0014]
[1773174745445,0.00144,70309.0,70287.0,0.07253687]
[1773174746018,0.07111566,70308.0,70289.0,0.0713772]
[1773174746348,0.07111566,70308.0,70302.0,0.0002]
[1773174746902,0.07111566,70308.0,70289.0,0.0002433]
[1773174747044,0.07111566,70308.0,70294.0,0.0002]
[1773174748594,0.001,70308.0,70294.0,0.07132965]
[1773174748795,0.00144,70307.0,70294.0,0.07132965]
[1773174749018,0.00144,70307.0,70294.0,0.0002]
[1773174749414,0.002,70308.0,70294.0,0.0002]
[1773174749619,0.00144,70307.0,70294.0,0.0002]
[1773174750358,0.07111768,70306.0,70294.0,0.0002]
[1773174750921,0.00144,70314.0,70295.0,0.07112881]
[1773174751828,0.00144,70314.0,70296.0,0.0014]
[1773174753213,0.0711106,70313.0,70296.0,0.07252688]
[1773174755580,0.0711106,70313.0,70296.0,0.07272688]
[1773174759150,0.00022001,70318.0,70298.0,0.07112577]
[1773174759361,0.00022001,70318.0,70305.0,0.11303146]
[1773174759649,0.00022001,70318.0,70306.0,0.00144]
[1773174760215,0.00022001,70318.0,70306.0,0.11447146]
[1773174760413,0.00022001,70318.0,70306.0,0.00144]
[1773174761065,0.07132598,70318.0,70296.0,0.0002]
[1773174761212,0.16190309,70310.0,70296.0,0.0002]
[1773174761411,0.00144,70310.0,70296.0,0.0002]
[1773174763263,0.07111465,70309.0,70296.0,0.0002]
[1773174764545,0.07111465,70309.0,70281.0,0.00144]
[1773174764745,0.16190309,70300.0,70282.0,0.0014]
[1773174764946,0.00144,70299.0,70282.0,0.0014]
[1773174765144,0.00144,70299.0,70281.0,0.07134293]
[1773174765377,0.07112577,70298.0,70282.0,0.0014]
[1773174766907,0.07112577,70298.0,70270.0,0.12515606]
[1773174766908,0.05400264,70292.0,70269.0,0.07115455]
[1773174767054,0.05400264,70286.0,70270.0,0.0014]
[1773174767258,0.07113893,70285.0,70266.0,0.07115771]
[1773174767464,0.05400264,70280.0,70268.0,0.0014]
[1773174767938,0.05400264,70280.0,70267.0,0.0713567]
[1773174768080,0.05400264,70280.0,70269.0,0.0014]
[1773174769571,0.07114113,70283.0,70270.0,0.0014]
[1773174769917,0.07114113,70283.0,70275.0,0.001]
[1773174770119,0.07114113,70283.0,70269.0,0.0014]
[1773174770342,0.07114113,70283.0,70267.0,0.07135704]
[1773174770523,0.07114113,70283.0,70268.0,0.0014]
[1773174771148,0.07114095,70283.0,70268.0,0.0014]
[1773174771351,0.07114095,70284.0,70267.0,0.07135704]
[1773174771528,0.07114095,70284.0,70268.0,0.0014]
[1773174771725,0.07113893,70285.0,70268.0,0.0014]
[1773174771948,0.07113893,70285.0,70269.0,0.0014]
[1773174772442,0.07113893,70285.0,70270.0,0.0014]
[1773174773088,0.00144,70284.0,70269.0,0.0002]
[1773174773520,0.07114095,70283.0,70269.0,0.0002]
[1773174775563,0.00144,70284.0,70269.0,0.07135505]
[1773174775918,0.00037368,70286.0,70269.0,0.07135505]
[1773174776543,0.07112904,70295.0,70269.0,0.07135505]
[1773174776720,0.00144,70294.0,70269.0,0.07172873]
[1773174777515,0.0001,70284.0,70269.0,0.07172873]
[1773174777943,0.0001,70284.0,70269.0,0.07272873]
[1773174778152,0.14156419,70294.0,70269.0,0.07272873]
[1773174778354,0.11349806,70297.0,70269.0,0.07272873]
[1773174778355,0.07112827,70296.0,70269.0,0.07172873]
[1773174778504,0.11349806,70297.0,70269.0,0.07272873]
[1773174778708,0.21289036,70298.0,70269.0,0.07272873]
[1773174779059,0.14156419,70297.0,70269.0,0.07272873]
[1773174779263,0.07132617,70298.0,70269.0,0.07272873]
[1773174779980,0.07132617,70298.0,70269.0,0.07172873]
[1773174780280,0.07132617,70298.0,70269.0,0.07272873]
[1773174780507,0.07132617,70298.0,70269.0,0.07172873]
[1773174780921,0.07132617,70298.0,70269.0,0.07272873]
[1773174781546,0.07132617,70298.0,70269.0,0.07172873]
[1773174781954,0.07132617,70298.0,70269.0,0.07272873]
[1773174784668,0.07132617,70298.0,70269.0,0.07172873]
[1773174784866,0.07132617,70298.0,70269.0,0.07272873]
[1773174785076,0.14176419,70298.0,70270.0,0.16206466]
[1773174785290,0.00023,70300.0,70270.0,0.16206466]
[1773174785518,0.0001,70298.0,70270.0,0.16206466]
[1773174785754,0.0001,70298.0,70271.0,0.0711531]
[1773174786021,0.00032001,70298.0,70272.0,0.00144]
[1773174786598,0.00032001,70298.0,70280.0,0.16206466]
[1773174786799,0.00032001,70298.0,70281.0,0.00144]
[1773174787006,0.00023,70300.0,70281.0,0.00144]
[1773174787737,0.00023,70300.0,70282.0,0.07114197]
[1773174789669,0.00033,70300.0,70282.0,0.07114197]
[1773174790034,0.00033,70300.0,70282.0,0.07214197]
[1773174790249,0.00033,70300.0,70282.0,0.07114197]
[1773174790651,0.00033,70300.0,70282.0,0.07214197]
[1773174791271,0.00033,70300.0,70282.0,0.07114197]
[1773174791669,0.00033,70300.0,70282.0,0.07214197]
[1773174792595,0.00033,70300.0,70283.0,0.00144]
[1773174793650,0.00043,70300.0,70283.0,0.00144]
[1773174794062,0.00043,70300.0,70284.0,0.07113994]
[1773174794295,0.00065001,70300.0,70284.0,0.07113994]
[1773174794602,0.00075001,70300.0,70284.0,0.07113994]
[1773174796740,0.00022001,70306.0,70284.0,0.07113994]
[1773174798135,0.00022001,70306.0,70285.0,0.00144]
[1773174798355,0.00032001,70313.0,70290.0,0.16192723]
[1773174798556,0.00032001,70313.0,70286.0,0.07113792]
[1773174800748,0.0004201,70311.0,70286.0,0.07213792]
[1773174800954,0.0004201,70311.0,70286.0,0.07313792]
[1773174801149,0.0004201,70311.0,70286.0,0.07113792]
[1773174801538,0.0004201,70311.0,70286.0,0.07213792]
[1773174801742,0.0004201,70311.0,70286.0,0.07113792]
[1773174801943,0.0005201,70311.0,70286.0,0.07113792]
[1773174802445,0.0005201,70311.0,70286.0,0.07213792]
[1773174802807,0.0005201,70311.0,70287.0,0.00144]
[1773174804359,0.0006201,70311.0,70287.0,0.00144]
[1773174804563,0.0006201,70311.0,70288.0,0.07113589]
[1773174806742,0.0006201,70311.0,70288.0,0.07213589]
[1773174807242,0.0006201,70311.0,70288.0,0.07113589]
[1773174807762,0.0007201,70311.0,70288.0,0.07113589]
[1773174807957,0.07183327,70311.0,70288.0,0.07213589]
[1773174808159,0.07183327,70311.0,70289.0,0.00144]
[1773174808357,0.0007201,70311.0,70289.0,0.00144]
[1773174808593,0.07183342,70311.0,70290.0,0.07113387]
[1773174808715,0.07183342,70311.0,70291.0,0.00144]
[1773174809619,0.00094011,70311.0,70291.0,0.00144]
[1773174809849,0.00105215,70311.0,70291.0,0.00144]
[1773174810531,0.00105215,70311.0,70288.0,0.07113589]
[1773174810532,0.0722651,70311.0,70292.0,0.00144]
[1773174811362,0.0723651,70311.0,70292.0,0.00144]
[1773174812325,0.0723651,70311.0,70292.0,0.00244]
[1773174812959,0.00125215,70311.0,70293.0,0.07113083]
[1773174814615,0.00135215,70311.0,70293.0,0.07113083]
[1773174815939,0.00145215,70311.0,70293.0,0.07113083]
[1773174816499,0.00145215,70311.0,70294.0,0.00144]
[1773174816906,0.00155215,70311.0,70294.0,0.00144]
[1773174817220,0.00155215,70311.0,70295.0,0.07112881]
[1773174817539,0.00155215,70311.0,70296.0,0.00144]
[1773174817895,0.00155215,70311.0,70281.0,0.07114238]
[1773174817896,0.16192723,70310.0,70281.0,0.07114238]
[1773174818094,0.16192723,70310.0,70259.0,0.34179114]
[1773174818095,0.16192723,70300.0,70285.0,0.00144]
[1773174818328,0.16192723,70300.0,70286.0,0.00144]
[1773174818530,0.14173663,70302.0,70286.0,0.00144]
[1773174818732,0.02618198,70301.0,70286.0,0.00144]
[1773174819109,0.11349806,70298.0,70280.0,0.00144]
[1773174819325,0.25523469,70297.0,70280.0,0.00144]
[1773174819517,0.11349806,70297.0,70280.0,0.00144]
[1773174819918,0.14173663,70297.0,70280.0,0.00144]
[1773174820164,0.11493806,70299.0,70281.0,0.01833426]
[1773174820364,0.01752484,70298.0,70275.0,0.00023]
[1773174820559,0.01752484,70288.0,70260.0,0.07116415]
[1773174820780,0.01752484,70286.0,70266.0,0.00144]
[1773174820982,0.00144,70287.0,70259.0,0.0713652]
[1773174820983,0.01752484,70279.0,70259.0,0.0713652]
[1773174821181,0.01752484,70277.0,70259.0,0.0002]
[1773174821894,0.01752484,70277.0,70261.0,0.00057368]
[1773174822297,0.5,70277.0,70261.0,0.00057368]
[1773174822452,0.00088711,70275.0,70261.0,0.00057368]
[1773174823247,0.00085247,70273.0,70259.0,0.0002]
[1773174823465,0.00085247,70272.0,70259.0,0.0002]
[1773174824084,0.00144,70271.0,70259.0,0.0002]
[1773174824965,0.50144,70271.0,70259.0,0.0002]
[1773174825311,0.572594,70271.0,70259.0,0.0002]
[1773174826263,1.072594,70271.0,70259.0,0.0002]
[1773174826924,1.07259331,70271.0,70259.0,0.0002]
[1773174827703,1.07259331,70271.0,70251.0,0.0004406]
[1773174827704,0.16192723,70270.0,70251.0,0.0004406]
[1773174827913,0.16192723,70260.0,70244.0,0.0002]
[1773174828118,0.16192723,70260.0,70234.0,0.02967297]
[1773174828119,0.00144,70259.0,70239.0,0.00144]
[1773174828318,0.00144,70259.0,70237.0,0.07118746]
[1773174828520,0.00144,70259.0,70238.0,0.07142684]
[1773174828722,0.00144,70259.0,70238.0,0.09002184]
[1773174828927,0.00144,70259.0,70239.0,0.018595]
[1773174829121,0.50144,70259.0,70238.0,0.0002406]
[1773174829335,0.07116627,70258.0,70238.0,0.09002178]
[1773174829550,0.00144,70257.0,70239.0,0.018595]
[1773174830437,0.07116627,70258.0,70239.0,0.018595]
[1773174830920,0.07116627,70258.0,70239.0,0.020035]
[1773174830921,0.00244,70257.0,70239.0,0.020035]
[1773174831137,0.00244,70257.0,70239.0,0.00144]
[1773174831578,0.07116829,70256.0,70239.0,0.09092343]
[1773174831782,0.07116829,70256.0,70240.0,0.00144]
[1773174834126,0.57116829,70256.0,70240.0,0.00144]
[1773174834553,0.57116829,70256.0,70240.0,0.00164]
[1773174835398,0.42883171,70256.0,70242.0,0.01781905]
[1773174835618,0.42883171,70256.0,70244.0,0.01781905]
[1773174837655,0.42883171,70256.0,70246.0,0.01759151]
[1773174839114,0.32124031,70256.0,70246.0,0.01759151]
[1773174839984,0.32124031,70256.0,70245.0,0.07117944]
[1773174840210,0.32124031,70256.0,70244.0,0.07118032]
[1773174840430,0.3210636,70256.0,70244.0,0.07118032]
[1773174840652,0.3210636,70256.0,70243.0,0.07118135]
[1773174841092,0.3210636,70256.0,70244.0,0.01740423]
[1773174841287,0.28938567,70256.0,70244.0,0.01740423]
[1773174841493,0.26485758,70256.0,70244.0,0.01740423]
[1773174841653,0.26485758,70256.0,70245.0,0.07117944]
[1773174841851,0.26485758,70256.0,70246.0,0.01745762]
[1773174842355,0.26485758,70256.0,70248.0,0.01745762]
[1773174842559,0.00022001,70265.0,70248.0,0.00751762]
[1773174842782,0.07138012,70265.0,70248.0,0.00751762]
[1773174843002,0.08109802,70265.0,70248.0,0.00751762]
[1773174843831,0.08109802,70265.0,70249.0,0.07117539]
[1773174844033,0.00096456,70264.0,70250.0,0.00144]
[1773174845062,0.07138012,70265.0,70250.0,0.00144]
[1773174845063,0.07138012,70265.0,70251.0,0.01734657]
[1773174847930,0.07137922,70265.0,70251.0,0.01878657]
[1773174848714,0.07137922,70265.0,70252.0,0.00144]
[1773174849045,0.00022001,70264.0,70252.0,0.00144]
[1773174849563,0.00022001,70264.0,70230.0,0.02722545]
[1773174849743,0.00022001,70264.0,70238.0,0.07142511]
[1773174849949,0.0711612,70263.0,70241.0,0.00144]
[1773174850172,0.0711612,70263.0,70241.0,0.01891636]
[1773174850371,0.00144,70262.0,70241.0,0.01891636]
[1773174852275,0.07116323,70261.0,70243.0,0.01730512]
[1773174852449,0.14174247,70260.0,70243.0,0.01730512]
[1773174852639,0.14174247,70259.0,70243.0,0.01730512]
[1773174852842,0.00144,70258.0,70243.0,0.01730512]
[1773174854166,0.14318247,70258.0,70243.0,0.01730512]
[1773174854372,0.14174247,70258.0,70244.0,0.07118045]
[1773174854569,0.00144,70259.0,70245.0,0.01686694]
[1773174854999,0.15836424,70260.0,70245.0,0.01686694]
[1773174855199,0.14174247,70259.0,70245.0,0.01686694]
[1773174856213,0.14174247,70258.0,70245.0,0.01686694]
[1773174856424,0.14174247,70259.0,70246.0,0.07117843]
[1773174856622,0.14174247,70258.0,70247.0,0.00144]
[1773174856827,0.14174247,70259.0,70247.0,0.00144]
[1773174857034,0.14174247,70258.0,70247.0,0.00144]
[1773174857338,0.14174247,70257.0,70247.0,0.00144]
[1773174857539,0.01806177,70260.0,70247.0,0.00144]
[1773174857540,0.14174247,70259.0,70247.0,0.00144]
[1773174857746,0.01806177,70260.0,70247.0,0.00144]
[1773174857747,0.14174247,70258.0,70247.0,0.00144]
[1773174857947,0.00166001,70265.0,70248.0,0.05404454]
[1773174858152,0.00166001,70265.0,70249.0,0.01686694]
[1773174858521,0.00166001,70265.0,70251.0,0.01686694]
[1773174859424,0.00022001,70265.0,70251.0,0.01686694]
[1773174860185,0.00144,70271.0,70251.0,0.01686694]
[1773174860484,0.00144,70271.0,70252.0,0.07117235]
[1773174860685,0.01566446,70271.0,70253.0,0.01645417]
[1773174860891,0.01566446,70271.0,70255.0,0.01645417]
[1773174861284,0.01566446,70270.0,70255.0,0.01645417]
[1773174862469,0.00022001,70272.0,70262.0,0.01645417]
[1773174862683,0.00022001,70272.0,70261.0,0.07116323]
[1773174863014,4.322e-05,70264.0,70260.0,0.08761833]
[1773174863365,4.322e-05,70264.0,70261.0,0.00144]
[1773174864277,0.00022001,70272.0,70262.0,0.01645417]
[1773174864669,0.00022001,70272.0,70256.0,0.07116803]
[1773174864670,0.01566446,70271.0,70250.0,0.0002]
[1773174864892,0.11368037,70271.0,70250.0,0.0002]
[1773174865079,0.01566446,70268.0,70251.0,0.01645417]
[1773174865281,0.01566446,70266.0,70251.0,0.01645417]
[1773174866277,0.01566446,70270.0,70251.0,0.01645417]
[1773174866468,0.00144,70266.0,70251.0,0.01645417]
[1773174866809,0.00144,70266.0,70252.0,0.00144]
[1773174866810,0.01566446,70264.0,70252.0,0.00144]
[1773174867954,0.01531078,70264.0,70252.0,0.00144]
[1773174868933,0.00035386,70263.0,70252.0,0.07261205]
[1773174870536,0.00035386,70263.0,70252.0,0.00144]
[1773174870537,0.00017697,70263.0,70252.0,0.00144]
[1773174870906,0.01566446,70262.0,70252.0,0.00144]
[1773174871185,0.01566446,70261.0,70251.0,0.00144]
[1773174873069,0.01566446,70261.0,70250.0,0.0002]
[1773174873324,0.01566446,70261.0,70250.0,0.00164]